bitfinex/quotes_ETHUSD_20251217
["timestamp","ask_amount","ask_price","bid_price","bid_amount"]
[1765984825302,3.31027177,3020.9,3019.9,0.01324372]
[1765984825604,3.30932787,3021.8,3020.2,0.4615]
[1765984825605,3.30961442,3021.5,3020.2,0.4615]
[1765984825807,3.30906684,3022.0,3020.4,0.4615]
[1765984826037,6.61777609,3022.2,3020.9,0.4615]
[1765984826328,6.61977609,3022.2,3021.8,0.01324372]
[1765984826485,11.45984436,3022.2,3021.8,0.01324372]
[1765984826672,11.45984436,3022.2,3021.4,0.01324372]
[1765984826879,0.4761,3022.1,3021.2,0.01324372]
[1765984827083,0.4761,3022.0,3021.2,0.01324372]
[1765984828002,10.98374436,3022.2,3021.4,0.01324372]
[1765984828214,10.98374436,3022.2,3021.6,0.01324372]
[1765984828396,9.92869274,3022.2,3021.6,0.01324372]
[1765984828593,10.40479274,3022.2,3021.4,0.01324372]
[1765984828806,0.94048023,3022.1,3021.4,0.01324372]
[1765984828974,0.4761,3022.0,3021.2,0.01324372]
[1765984829170,0.4761,3021.9,3021.2,0.01324372]
[1765984829578,0.4761,3021.9,3020.6,0.01324372]
[1765984829579,0.4761,3021.2,3020.4,0.01324372]
[1765984829777,0.4761,3021.2,3019.7,3.32478743]
[1765984830037,0.4761,3021.2,3019.7,0.01324372]
[1765984830180,0.6706,3020.3,3019.7,0.01324372]
[1765984830379,0.4761,3020.2,3019.7,0.01324372]
[1765984830612,0.4761,3020.2,3019.5,0.01324372]
[1765984830829,0.4761,3020.0,3019.4,0.01324372]
[1765984831416,0.4761,3019.9,3019.1,0.01324372]
[1765984831625,0.4761,3019.9,3019.3,0.01324372]
[1765984831788,9.93344589,3020.1,3019.5,0.01324372]
[1765984831789,6.62229726,3020.1,3019.5,0.01324372]
[1765984832179,9.93344589,3020.1,3019.5,0.01324372]
[1765984832374,0.4761,3020.0,3019.3,0.01324372]
[1765984832624,0.4761,3019.9,3019.1,0.01324372]
[1765984832912,0.4761,3019.7,3019.3,0.01324372]
[1765984833116,0.4761,3019.7,3019.1,0.01324372]
[1765984833528,6.62295516,3019.8,3019.3,0.01324372]
[1765984833743,0.1945,3019.4,3019.3,0.01324372]
[1765984833884,0.6706,3019.4,3019.3,4.372e-05]
[1765984834295,0.6706,3019.4,3019.1,0.01324372]
[1765984834588,6.62295516,3019.8,3019.3,0.01324372]
[1765984834835,6.62339382,3019.6,3019.3,0.01324372]
[1765984835385,0.4761,3019.5,3018.9,0.01324372]
[1765984835584,0.4761,3019.5,3019.1,0.01324372]
[1765984835991,3.31169691,3019.6,3019.3,0.01324372]
[1765984836195,0.4761,3019.5,3019.1,0.01324372]
[1765984836711,0.4761,3019.5,3018.9,0.01324372]
[1765984837340,0.4761,3019.3,3019.1,0.01324372]
[1765984837504,3.31191627,3019.4,3019.3,0.01324372]
[1765984837825,4.81666008,3020.0,3019.1,0.01324372]
[1765984837826,3.31169691,3019.6,3019.1,0.01324372]
[1765984837994,3.31169691,3019.6,3019.3,0.01324372]
[1765984838390,3.31147758,3019.8,3019.5,0.01324372]
[1765984838605,0.4761,3019.7,3019.4,0.01324372]
[1765984838807,0.4761,3019.7,3019.2,0.01324372]
[1765984839008,6.62295516,3019.8,3019.3,0.01324372]
[1765984839207,3.31129853,3020.0,3019.3,0.01324372]
[1765984839399,0.4761,3019.9,3019.3,0.01324372]
[1765984840128,0.4761,3019.9,3019.5,0.01324372]
[1765984840330,0.4761,3019.9,3019.3,0.01324372]
[1765984840694,6.62229726,3020.1,3019.5,0.01324372]
[1765984840896,3.31114863,3020.1,3019.9,0.01324372]
[1765984841120,3.31114863,3020.1,3019.3,0.01324372]
[1765984841121,0.4761,3020.0,3019.3,0.01324372]
[1765984841321,0.4761,3019.7,3018.7,0.01324372]
[1765984841631,0.4761,3019.6,3018.7,0.01324372]
[1765984841837,0.4761,3019.6,3018.5,0.01424372]
[1765984842020,0.6706,3018.6,3018.5,0.001]
[1765984842221,0.1945,3018.6,3018.5,0.001]
[1765984843324,6.62342113,3019.6,3018.5,0.03412903]
[1765984843527,0.94048023,3019.5,3019.1,0.01655739]
[1765984843706,0.4761,3019.5,3019.1,0.01655739]
[1765984843905,6.62342113,3019.6,3019.3,0.01655739]
[1765984844102,3.31169691,3019.6,3019.5,0.01655739]
[1765984844432,0.002,3019.7,3019.5,0.01655739]
[1765984844809,0.6706,3020.9,3019.5,0.01655739]
[1765984845009,3.30994306,3021.2,3019.6,0.03311696]
[1765984845210,3.30994306,3021.2,3019.5,0.01655739]
[1765984845211,3.30994306,3021.2,3020.1,0.1638]
[1765984845411,0.1945,3021.8,3020.1,0.1638]
[1765984845412,3.30947202,3021.7,3020.4,0.4615]
[1765984845654,6.61894404,3021.7,3020.4,0.4615]
[1765984845816,0.002,3022.2,3020.3,0.405504]
[1765984846135,3.30895734,3022.1,3020.8,0.4615]
[1765984846502,0.4761,3021.9,3021.0,0.01985933]
[1765984847006,30.0,3021.8,3020.5,0.01985933]
[1765984847243,9.92982918,3021.2,3020.1,0.01985933]
[1765984847545,0.4761,3021.0,3020.1,0.01985933]
[1765984847926,0.4761,3021.0,3020.4,0.01985933]
[1765984848101,0.1945,3020.5,3020.1,0.01985933]
[1765984848304,0.1945,3020.5,3019.7,0.01985933]
[1765984848533,0.1945,3020.5,3019.9,0.01985933]
[1765984848952,0.1945,3020.5,3020.1,0.01985933]
[1765984849248,9.93048657,3021.0,3019.7,0.01985933]
[1765984849546,9.93048657,3021.0,3018.7,0.01655739]
[1765984849547,0.600004,3020.5,3018.7,0.01655739]
[1765984849708,1.06438423,3020.5,3019.3,0.01985933]
[1765984849907,0.405504,3020.3,3018.7,0.01655739]
[1765984850134,0.4761,3020.2,3019.1,0.01985933]
[1765984850615,0.4761,3020.2,3019.3,0.01985933]
[1765984850814,0.4761,3020.2,3019.6,0.01985933]
[1765984851337,0.4761,3020.0,3019.6,0.01985933]
[1765984851540,0.4761,3020.0,3019.3,0.01985933]
[1765984851707,0.1945,3020.5,3019.9,0.01985933]
[1765984851904,10.40625786,3021.1,3020.4,0.01985933]
[1765984852104,0.6706,3020.5,3020.4,0.01985933]
[1765984852406,0.1945,3020.5,3020.4,0.01985933]
[1765984853035,3.30990125,3021.3,3020.4,0.01985933]
[1765984853036,3.30974552,3021.4,3020.4,0.01985933]
[1765984853238,7.01752559,3021.4,3020.4,0.01985933]
[1765984853537,0.4761,3021.3,3020.4,3.33066857]
[1765984853738,0.4761,3021.3,3020.4,0.01985933]
[1765984853946,6.61949104,3021.4,3021.2,0.02317305]
[1765984854110,6.61949104,3021.4,3021.0,0.02317305]
[1765984854312,0.4761,3021.3,3021.0,0.02317305]
[1765984854538,6.61791468,3022.1,3021.2,0.02317305]
[1765984854847,7.32751615,3022.1,3021.2,0.02317305]
[1765984855026,4.01855881,3022.1,3021.2,0.02317305]
[1765984855230,6.61791468,3022.1,3021.2,0.02317305]
[1765984855429,0.002,3022.2,3021.2,0.02317305]
[1765984855630,0.002,3022.2,3021.3,0.4626]
[1765984855829,0.002,3022.7,3022.2,0.4626]
[1765984856233,0.002,3023.5,3022.5,0.405504]
[1765984856545,0.002,3023.5,3022.5,0.4626]
[1765984856744,0.002,3023.5,3022.3,0.405504]
[1765984856930,0.002,3023.5,3023.4,0.02317305]
[1765984857244,0.002,3024.0,3023.4,0.02317305]
[1765984857245,0.002,3024.0,3023.5,0.4626]
[1765984857635,0.002,3024.0,3023.6,3.76991578]
[1765984857820,0.002,3024.0,3023.6,7.07723156]
[1765984858021,0.002,3024.7,3023.9,0.02317305]
[1765984858947,6.6142288,3024.7,3023.9,0.02317305]
[1765984859136,0.199,3023.7,3022.7,0.1518]
[1765984859336,0.199,3023.7,3022.8,3.30811379]
[1765984859548,6.61463156,3023.6,3022.7,0.1518]
[1765984859710,0.68136316,3023.5,3022.2,0.4626]
[1765984860042,0.68136316,3023.5,3021.5,3.33272682]
[1765984860246,0.4579,3023.3,3022.2,0.02646509]
[1765984860544,0.4579,3023.2,3022.4,0.02646509]
[1765984861245,0.4579,3023.0,3022.2,0.02646509]
[1765984861646,10.68136316,3023.5,3022.2,0.02646509]
[1765984861647,0.4579,3022.7,3022.2,0.02646509]
[1765984862361,0.4579,3022.3,3020.6,0.02646509]
[1765984862515,0.4579,3022.3,3021.3,3.30972957]
[1765984862717,0.4579,3022.6,3021.3,0.1769]
[1765984862945,0.46438023,3022.8,3021.7,3.30937352]
[1765984863147,6.61616328,3022.9,3021.8,0.33093735]
[1765984863447,0.4579,3022.8,3022.1,0.01985276]
[1765984863652,0.4579,3022.5,3022.1,0.01985276]
[1765984864018,6.61681994,3022.6,3022.1,0.01985276]
[1765984864218,6.61681994,3022.6,3022.4,0.01985276]
[1765984864744,3.30840997,3022.6,3022.4,0.01985276]
[1765984864948,9.92522991,3022.6,3022.1,0.01985276]
[1765984865248,0.4579,3022.4,3021.3,0.01985276]
[1765984865452,0.4579,3021.4,3020.9,0.01985276]
[1765984865649,7.07756702,3021.3,3020.0,0.48906509]
[1765984865950,0.405504,3022.3,3020.0,0.48906509]
[1765984865951,1.45042299,3022.6,3020.6,0.405504]
[1765984866115,6.61713387,3022.5,3020.6,0.405504]
[1765984866316,6.61713387,3022.5,3020.3,0.46438023]
[1765984866317,0.4579,3022.3,3020.3,0.4626]
[1765984866520,0.405504,3021.7,3020.8,0.02316653]
[1765984866747,0.4579,3021.8,3021.0,0.02316653]
[1765984866925,0.4579,3021.8,3021.2,0.02316653]
[1765984867346,0.4579,3021.8,3020.8,0.02316653]
[1765984867549,0.4579,3022.1,3021.0,0.02316653]
[1765984867776,0.4579,3021.8,3021.0,0.02316653]
[1765984867955,1.08498093,3021.7,3020.8,0.02316653]
[1765984868121,0.4579,3021.4,3020.8,0.02316653]
[1765984868660,0.4579,3021.4,3021.0,0.02316653]
[1765984869767,7.11138355,3022.2,3021.2,0.02316653]
[1765984869935,7.11138355,3022.2,3021.7,0.02316653]
[1765984869936,3.30884785,3022.2,3021.7,0.02316653]
[1765984870141,7.10981293,3022.9,3021.7,0.20586653]
[1765984870336,0.002,3022.7,3021.7,0.20586653]
[1765984870570,0.002,3022.7,3021.7,0.02316653]
[1765984870760,0.4936,3022.6,3021.7,0.02316653]
[1765984871135,0.4936,3022.6,3021.4,0.02647122]
[1765984871490,0.4936,3022.2,3021.2,0.02316653]
[1765984871641,0.4936,3021.7,3020.8,0.02316653]
[1765984871844,0.6808,3021.5,3020.8,0.02316653]
[1765984872176,0.4928,3021.4,3020.8,0.02316653]
[1765984872424,3.30917634,3021.9,3021.2,0.02647122]
[1765984872679,0.46438023,3022.3,3021.4,0.02647122]
[1765984872885,3.3086289,3022.4,3021.6,0.02647122]
[1765984873237,6.6172578,3022.4,3021.6,0.02647122]
[1765984873648,0.002,3022.7,3021.6,0.02647122]
[1765984873973,0.405504,3022.4,3021.2,0.02647122]
[1765984874180,0.4936,3022.1,3021.0,0.02647122]
[1765984874489,0.4936,3021.9,3021.2,0.0297816]
[1765984875673,6.6185717,3021.8,3021.4,0.0297816]
[1765984875837,0.4936,3021.7,3021.4,0.0297816]
[1765984876473,6.6185717,3021.8,3021.4,0.0297816]
[1765984876880,7.1121717,3021.8,3021.4,0.0297816]
[1765984877382,0.4936,3021.7,3021.4,0.0297816]
[1765984877592,0.4936,3021.7,3021.2,0.0297816]
[1765984877739,0.4936,3021.4,3021.2,0.0297816]
[1765984877941,0.4936,3021.4,3021.0,0.02647122]
[1765984878194,0.4936,3021.4,3020.4,0.0297816]
[1765984878342,0.4936,3021.4,3020.6,0.0297816]
[1765984878966,0.4936,3021.2,3020.0,0.02646509]
[1765984879171,0.6808,3020.1,3019.8,0.02317305]
[1765984879340,0.6808,3020.1,3020.0,0.0297816]
[1765984879545,0.1872,3020.1,3020.0,0.0297816]
[1765984879780,6.80818188,3020.7,3020.0,0.0297816]
[1765984879994,0.4936,3020.6,3020.2,0.0297816]
[1765984880308,3.31042797,3020.8,3020.4,0.0297816]
[1765984880589,0.1872,3021.5,3020.6,0.0297816]
[1765984880789,0.4936,3021.4,3021.0,0.0297816]
[1765984881164,0.4936,3021.4,3020.8,0.0297816]
[1765984881366,0.4936,3021.2,3021.0,0.03309943]
[1765984881683,6.80652002,3021.5,3021.0,0.03309943]
[1765984881883,3.30939537,3021.7,3021.2,0.03309943]
[1765984882052,3.30906684,3022.0,3021.2,0.03309943]
[1765984882254,0.4936,3021.8,3021.0,0.03309943]
[1765984882551,0.4936,3021.8,3020.8,0.0297816]
[1765984882752,0.46438023,3021.9,3020.2,0.0297816]
[1765984882753,0.4936,3021.4,3020.2,0.0297816]
[1765984883186,0.4936,3021.4,3020.8,0.03309943]
[1765984883391,0.4936,3021.4,3021.0,0.03309943]
[1765984883588,9.92720622,3022.0,3021.0,0.03309943]
[1765984883797,10.41923693,3021.1,3019.7,0.001]
[1765984884001,0.6808,3019.8,3019.2,0.0297816]
[1765984884156,0.1872,3020.4,3019.3,0.03312025]
[1765984884484,0.1872,3020.4,3019.5,3.31177794]
[1765984884687,0.1872,3020.4,3019.7,3.31158008]
[1765984884891,0.1872,3020.4,3019.2,0.4896816]
[1765984885090,0.1872,3020.4,3019.5,3.31177082]
[1765984885291,0.1872,3020.4,3019.6,0.0442]
[1765984885457,0.1872,3020.4,3019.4,3.31190267]
[1765984885795,0.1872,3020.4,3019.2,0.4896816]
[1765984885796,3.31092937,3020.3,3019.3,3.31193557]
[1765984885966,3.50922792,3020.7,3019.9,0.02979738]
[1765984886300,3.50922792,3020.7,3020.1,0.02979738]
[1765984886455,3.31008865,3021.1,3020.5,0.02979738]
[1765984886650,6.6201773,3021.1,3020.5,0.02979738]
[1765984886891,7.0905773,3021.1,3020.5,0.02979738]
[1765984887293,0.4704,3021.0,3020.3,0.02979738]
[1765984887504,3.31008865,3021.1,3020.5,0.02979738]
[1765984887710,6.6201773,3021.1,3020.5,0.02979738]
[1765984887864,6.61988612,3021.2,3020.5,0.02979738]
[1765984888062,6.61988612,3021.2,3020.3,0.02979738]
[1765984888063,9.92982918,3021.2,3020.3,0.02979738]
[1765984888297,0.4704,3021.1,3020.3,0.02979738]
[1765984889185,0.4704,3021.0,3020.1,0.02979738]
[1765984889397,0.4704,3021.0,3019.7,0.03079738]
[1765984889699,0.4704,3020.4,3019.0,0.001]
[1765984889873,0.4704,3020.4,3017.5,10.41923693]
[1765984889874,0.1987,3018.6,3017.8,0.001]
[1765984890076,7.29470476,3018.6,3017.8,0.001]
[1765984890279,0.4704,3018.5,3017.8,0.001]
[1765984890675,0.4704,3018.4,3017.8,4.91e-06]
[1765984891290,0.4704,3018.0,3017.8,4.91e-06]
[1765984891886,3.31301351,3018.4,3017.8,4.91e-06]
[1765984892084,3.51158745,3018.6,3017.8,4.91e-06]
[1765984892286,0.4704,3019.0,3018.3,0.03310491]
[1765984892485,0.4704,3018.8,3017.9,0.03310491]
[1765984893789,6.62514906,3018.8,3017.9,0.03310491]
[1765984894029,0.4704,3018.7,3017.9,0.03310491]
[1765984894224,0.604204,3019.1,3018.3,0.03310491]
[1765984894225,3.31235508,3019.0,3018.3,0.03310491]
[1765984894432,6.82323478,3019.1,3018.5,0.03310491]
[1765984894928,3.51094537,3019.1,3018.5,0.03310491]
[1765984895174,3.31191627,3019.4,3018.9,0.03310491]
[1765984895469,0.1987,3019.5,3019.3,0.03310491]
[1765984895623,0.4704,3020.7,3019.3,0.16690491]
[1765984895827,7.09144248,3020.7,3019.5,6.62361318]
[1765984896068,0.46438023,3020.6,3019.5,3.31180659]
[1765984896230,11.13100827,3020.7,3019.5,3.31180659]
[1765984896426,7.82045673,3020.7,3020.2,0.03642264]
[1765984896674,3.31049094,3020.7,3020.2,0.03642264]
[1765984896891,0.4704,3021.1,3020.2,0.03642264]
[1765984896892,3.31008641,3021.1,3020.2,0.03642264]
[1765984897171,0.4704,3021.0,3020.3,9.29e-06]
[1765984897375,0.50350015,3021.0,3019.0,0.1957]
[1765984897659,0.50350015,3021.0,3019.2,3.3120935]
[1765984897660,0.4704,3020.5,3019.2,3.3120935]
[1765984897860,0.6691,3020.3,3019.1,3.31224537]
[1765984898366,0.50350015,3020.2,3018.8,3.3125667]
[1765984898575,0.4704,3019.9,3018.1,0.0662]
[1765984898819,0.4704,3019.4,3017.8,4.91e-06]
[1765984898991,0.4704,3018.9,3018.5,3.905e-05]
[1765984899144,0.4704,3018.7,3018.1,3.905e-05]
[1765984899330,0.1987,3017.9,3017.7,4.396e-05]
[1765984899527,0.1987,3018.3,3017.7,4.396e-05]
[1765984899773,0.50350015,3018.2,3017.7,4.396e-05]
[1765984899936,7.09708566,3018.1,3017.7,4.396e-05]
[1765984900136,0.50350015,3018.0,3017.7,4.396e-05]
[1765984900336,0.4704,3018.0,3017.7,4.396e-05]
[1765984900566,0.4704,3018.0,3017.8,0.04306632]
[1765984900770,6.62668566,3018.1,3017.8,0.04306632]
[1765984900976,0.4704,3018.0,3017.9,0.04306632]
[1765984901271,0.50350015,3018.0,3017.7,0.04306632]
[1765984901780,3.31334283,3018.1,3017.9,0.03644858]
[1765984901935,0.46438023,3018.8,3017.9,3.35001099]
[1765984902137,6.62251654,3020.0,3018.7,0.03644858]
[1765984902442,0.4704,3019.9,3018.1,0.23214858]
[1765984902646,13.24503308,3020.0,3018.1,0.23214858]
[1765984902647,0.4704,3019.4,3018.1,0.03644858]
[1765984902864,0.4704,3019.0,3018.1,0.03644858]
[1765984903443,0.1987,3019.1,3018.1,0.03644858]
[1765984903444,0.03310015,3018.9,3018.1,0.03644858]
[1765984903644,0.50350015,3018.9,3018.1,0.03644858]
[1765984903844,3.31257453,3018.8,3018.6,0.001]
[1765984904135,0.50350015,3018.7,3018.3,0.03975682]
[1765984904337,0.4704,3018.7,3018.5,0.0430649]
[1765984904535,3.78275508,3019.0,3018.5,0.0430649]
[1765984904931,3.31235508,3019.0,3018.5,0.0430649]
[1765984905267,3.31235508,3019.0,3018.8,0.04637681]
[1765984905268,0.4704,3018.9,3018.8,0.04637681]
[1765984905565,0.405504,3018.8,3018.3,0.04637681]
[1765984905736,0.4704,3018.7,3018.4,0.04637681]
[1765984905938,3.34589416,3018.6,3018.4,0.04637681]
[1765984906267,3.34589416,3018.6,3018.2,0.04637681]
[1765984906268,0.4704,3018.5,3018.2,0.04637681]
[1765984906502,0.4704,3018.6,3018.4,0.04969356]
[1765984906665,0.4704,3018.5,3018.2,0.04637681]
[1765984906865,0.4704,3018.5,3017.7,0.04306632]
[1765984907082,0.4704,3018.5,3017.9,0.04969356]
[1765984907892,0.4704,3018.5,3018.1,0.05725351]
[1765984908091,0.4657,3018.3,3017.7,0.04306632]
[1765984908376,0.1153,3017.5,3017.4,0.001]
[1765984908898,0.4704,3017.8,3017.4,0.001]
[1765984908899,0.1153,3018.0,3017.4,0.001]
[1765984909100,0.4704,3017.9,3017.6,0.06957559]
[1765984909290,0.4704,3017.9,3017.7,0.07621699]
[1765984909604,0.50350015,3017.9,3017.3,0.04075682]
[1765984909770,0.50350015,3017.9,3017.4,0.03921699]
[1765984909974,6.62734442,3017.8,3017.4,1.699e-05]
[1765984910177,0.4226,3017.6,3016.9,0.001]
[1765984910502,0.03310015,3017.6,3017.2,0.0828473]
[1765984910704,0.45570015,3017.6,3017.2,0.0828473]
[1765984910904,3.42881921,3018.0,3017.4,0.0828473]
[1765984911104,3.89319944,3018.0,3017.9,0.0828473]
[1765984911406,3.89319944,3018.0,3017.7,0.0828473]
[1765984911703,0.46438023,3018.5,3017.9,0.0828473]
[1765984911884,0.46438023,3018.5,3018.1,0.0828473]
[1765984912217,39.112481,3018.2,3016.0,3.31557749]
[1765984912511,0.4148,3017.3,3015.9,3.31673838]
[1765984912676,0.86988423,3017.4,3016.2,3.31641996]
[1765984912677,0.44790015,3017.2,3016.2,3.31641996]
[1765984912873,0.4148,3017.7,3016.3,0.1957]
[1765984913109,0.44790015,3017.7,3016.3,0.54690869]
[1765984913613,0.4148,3018.2,3017.3,0.06297647]
[1765984913812,0.405504,3018.1,3017.3,0.06297647]
[1765984913974,0.405504,3018.1,3017.5,0.06297647]
[1765984914171,0.87918023,3017.9,3017.3,0.06297647]
[1765984914674,0.46438023,3017.9,3017.3,0.06297647]
[1765984915014,6.62690522,3018.0,3017.5,0.05633243]
[1765984915221,6.62690522,3018.0,3017.7,0.05633243]
[1765984915590,6.62690522,3018.0,3017.1,0.05633243]
[1765984915591,0.405504,3017.8,3017.1,0.05633243]
[1765984915795,0.87918023,3017.9,3017.3,0.05633243]
[1765984915989,0.44790015,3017.8,3017.3,0.05633243]
[1765984916716,3.31370832,3017.8,3017.5,0.05965104]
[1765984916923,3.77808855,3017.8,3017.7,0.05965104]
[1765984917102,3.77808855,3017.8,3017.3,0.05633243]
[1765984917103,0.46438023,3017.7,3017.6,0.05965104]
[1765984917411,0.46438023,3017.7,3017.3,0.05633243]
[1765984917634,0.46438023,3017.7,3017.5,0.05965104]
[1765984917978,0.03310015,3017.6,3017.4,0.05965104]
[1765984918308,0.46438023,3017.8,3017.4,0.05965104]
[1765984918699,3.31368546,3017.8,3017.5,0.05965104]
[1765984919014,0.46438023,3017.7,3017.5,0.05965104]
[1765984919181,0.002,3017.7,3017.5,0.05965104]
[1765984919577,0.551,3017.6,3017.3,2.08e-06]
[1765984919784,0.03310015,3017.5,3016.3,0.25867647]
[1765984919981,0.03310015,3017.5,3016.9,0.05965104]
[1765984920182,0.26820015,3017.5,3016.9,0.05965104]
[1765984920382,0.26820015,3017.5,3016.3,0.06297647]
[1765984920681,0.70028023,3017.3,3016.3,0.06297647]
[1765984920887,1.01538023,3017.3,3016.9,0.06297229]
[1765984921191,0.002,3017.7,3017.1,0.06297229]
[1765984921390,0.46438023,3017.6,3016.5,3.31609921]
[1765984921595,0.551,3017.5,3016.6,0.37947992]
[1765984921790,0.551,3017.5,3016.5,0.001]
[1765984921999,0.551,3017.4,3016.5,3.31601291]
[1765984922201,0.46438023,3017.6,3016.5,0.001]
[1765984922511,0.002,3017.7,3017.5,0.06628882]
[1765984923091,0.002,3017.7,3017.2,0.06628882]
[1765984923291,0.002,3017.7,3017.3,0.4787]
[1765984923496,0.002,3017.7,3017.6,0.06628882]
[1765984923812,0.002,3017.7,3017.1,3.314359]
[1765984923813,0.46638023,3017.7,3016.6,0.4787]
[1765984924015,0.55,3017.6,3016.6,0.4787]
[1765984924416,0.002,3017.7,3017.2,0.06628882]
[1765984924622,3.76938497,3018.9,3016.9,3.314656]
[1765984924623,9.93772359,3018.8,3016.9,3.314656]
[1765984924786,0.6553,3018.7,3016.6,0.4787]
[1765984924986,6.62514906,3018.8,3017.4,0.4787]
[1765984925219,0.68760015,3018.7,3017.4,0.4787]
[1765984925404,1.15198038,3018.7,3017.4,0.4787]
[1765984925594,0.1053,3018.6,3017.0,0.4787]
[1765984925925,0.510804,3018.3,3017.0,0.4787]
[1765984926086,0.1053,3017.7,3016.5,0.001]
[1765984926288,0.55,3017.6,3016.5,3.31603455]
[1765984926489,0.03230015,3017.5,3016.5,0.001]
[1765984926690,0.46438023,3017.3,3016.5,0.001]
[1765984926920,0.03230015,3017.2,3016.5,0.001]
[1765984927121,0.55,3017.1,3016.6,0.07620689]
[1765984927415,1.01438023,3017.3,3016.8,0.07620689]
[1765984927623,1.04668038,3017.3,3016.8,0.07620689]
[1765984927794,6.62822296,3017.4,3017.0,0.07620689]
[1765984927795,0.46438023,3017.4,3017.0,0.07620689]
[1765984927995,1.01438023,3017.4,3017.0,0.07620689]
[1765984928200,0.46438023,3017.4,3017.0,0.07620689]
[1765984928517,1.01438023,3017.4,3017.0,0.07620689]
[1765984929119,0.46438023,3017.3,3016.8,0.07620689]
[1765984929425,0.13760015,3017.2,3016.7,0.07620689]
[1765984929598,0.55,3017.1,3016.5,0.001]
[1765984929792,0.03230015,3017.0,3016.5,0.001]
[1765984929993,0.55,3017.1,3016.5,0.001]
[1765984930230,0.405504,3017.2,3016.5,0.001]
[1765984930539,0.68760015,3017.1,3016.5,0.001]
[1765984930843,0.405504,3017.0,3016.5,0.001]
[1765984930997,0.46438023,3017.1,3016.6,0.08286927]
[1765984931194,0.55,3017.0,3016.6,0.08286927]
[1765984931524,0.03230015,3016.9,3016.5,0.001]
[1765984931728,0.03230015,3016.9,3016.6,0.08286927]
[1765984931934,0.03230015,3016.9,3016.5,0.001]
[1765984932221,1.01438023,3017.1,3016.5,0.4962]
[1765984932399,1.01438023,3017.1,3016.5,0.001]
[1765984932600,1.77868449,3017.1,3016.5,0.001]
[1765984932801,0.955504,3017.0,3016.5,0.001]
[1765984933001,0.46438023,3016.8,3016.5,0.001]
[1765984933403,0.03230015,3016.7,3016.2,0.001]
[1765984933604,0.03230015,3016.7,3015.1,0.1957]
[1765984933605,0.1023,3015.9,3015.2,0.09281665]
[1765984933808,0.58230015,3015.8,3015.2,1e-08]
[1765984934121,0.55,3015.8,3014.6,0.57240184]
[1765984934633,0.97118423,3015.5,3014.7,0.09948599]
[1765984934849,1.68422414,3015.4,3014.9,0.09948599]
[1765984934998,0.46438023,3015.2,3014.9,0.09948599]
[1765984935339,0.46438023,3015.2,3014.6,0.001]
[1765984935697,0.405504,3014.9,3014.0,0.09948599]
[1765984935898,0.56568023,3015.2,3013.8,0.09948599]
[1765984936096,0.58230015,3014.8,3014.1,0.09288439]
[1765984936751,0.405504,3015.1,3014.3,0.09288439]
[1765984936949,0.58230015,3014.7,3014.1,0.09288439]
[1765984937123,0.46438023,3014.4,3014.2,0.05971338]
[1765984937322,0.46438023,3014.4,3014.0,0.001]
[1765984937541,1.01438023,3014.7,3014.0,0.001]
[1765984937846,8.12222709,3014.7,3014.0,0.001]
[1765984938048,0.0993,3014.4,3013.6,0.09948599]
[1765984938264,0.405504,3014.2,3013.5,0.05971338]
[1765984938864,10.46438023,3014.6,3013.9,0.05971338]
[1765984938865,0.46438023,3014.6,3013.9,0.05971338]
[1765984939041,0.0993,3015.8,3014.2,0.6806]
[1765984939243,3.31590537,3015.8,3015.2,0.0530812]
[1765984939422,7.18181074,3015.8,3015.2,0.0530812]
[1765984939952,0.55,3015.8,3015.2,0.0530812]
[1765984940480,0.03230015,3015.7,3014.8,0.0530812]
[1765984940750,0.46438023,3015.3,3014.6,0.0530812]
[1765984940957,0.405504,3015.1,3014.1,0.0530812]
[1765984941158,0.46438023,3014.9,3014.1,0.0530812]
[1765984941365,0.55,3014.8,3014.1,0.0530812]
[1765984941923,9.95024874,3015.0,3014.1,0.2384812]
[1765984941924,0.55,3014.7,3014.1,0.2384812]
[1765984942122,3.31674958,3015.0,3014.5,0.0530812]
[1765984942414,1.01438023,3014.9,3014.5,0.0530812]
[1765984942620,3.3166624,3015.1,3014.7,0.0530812]
[1765984942857,0.1023,3015.9,3014.9,0.0530812]
[1765984943069,0.0462,3015.5,3014.1,3.55621813]
[1765984943357,6.66491937,3015.4,3014.1,3.55621813]
[1765984943532,1.01438023,3015.3,3014.2,0.4952]
[1765984943726,0.03230015,3015.2,3014.2,0.4952]
[1765984943962,0.405504,3015.2,3014.1,3.37079439]
[1765984944138,0.404704,3015.2,3014.1,3.55619439]
[1765984944343,0.404704,3015.2,3014.7,0.05637726]
[1765984944552,0.404704,3015.2,3014.5,0.05637726]
[1765984944749,0.404704,3015.2,3014.9,0.05637726]
[1765984944970,0.43700415,3015.2,3014.1,0.0530812]
[1765984945196,6.63305916,3015.2,3014.2,0.50977629]
[1765984945486,6.63305916,3015.2,3014.1,0.2433812]
[1765984945487,0.46438023,3015.1,3014.1,0.0530812]
[1765984945646,0.03230015,3015.0,3014.3,0.05970842]
[1765984945842,0.55,3014.9,3014.1,0.0530812]
[1765984946069,0.55,3014.9,3014.2,0.05970842]
[1765984946275,0.405504,3014.8,3014.2,0.05970842]
[1765984946478,0.405504,3014.8,3014.4,0.05970842]
[1765984946775,0.405504,3014.8,3014.2,0.05970842]
[1765984946964,0.03230015,3014.7,3013.7,0.05971338]
[1765984947175,0.03230015,3014.7,3014.0,0.05970842]
[1765984947176,6.63459942,3014.5,3014.0,0.05970842]
[1765984947351,0.55,3014.4,3014.0,0.05970842]
[1765984947546,0.03230015,3014.3,3013.5,0.05971338]
[1765984947881,0.86988423,3014.0,3013.0,0.05970842]
[1765984948188,0.46438023,3014.3,3013.1,0.1903]
[1765984948345,0.405504,3014.1,3013.6,0.05970842]
[1765984948546,0.405504,3014.1,3013.4,0.05970842]
[1765984948792,0.43780415,3014.1,3013.0,0.05970842]
[1765984949081,0.405504,3014.3,3013.3,0.05970842]
[1765984949281,6.63614042,3013.8,3013.3,0.05970842]
[1765984949592,8.7258512,3015.2,3013.7,0.05970842]
[1765984949880,3.31680328,3015.0,3014.2,0.05970842]
[1765984950081,0.55,3014.9,3014.3,0.05970842]
[1765984950281,0.58230015,3014.8,3014.0,0.05970842]
[1765984950460,0.405504,3014.9,3013.7,0.05970842]
[1765984950656,0.405504,3014.7,3013.7,0.05970842]
[1765984951187,0.55,3014.8,3013.3,0.4766]
[1765984951356,0.405504,3014.4,3013.3,3.7951462]
[1765984951571,0.405504,3014.2,3013.8,0.0630266]